fUSD/lending_fUSD_20260115
["ID","MTS","AMOUNT","RATE_DAILY","PERIOD"]
[402047471,1768493470987,-151.0,0.00038904,120]
[402047472,1768493470996,-500.0,0.00038904,30]
[402047473,1768493471006,-410.46830719,0.00038904,30]
[402047474,1768493471015,-500.0,0.00038904,30]
[402047475,1768493471024,-506.36,0.00038904,30]
[402047476,1768493471033,-500.0,0.00038904,30]
[402047477,1768493471043,-500.0,0.00038904,30]
[402047478,1768493471052,-507.06339757,0.00038904,30]
[402047479,1768493471062,-998.86,0.00038904,30]
[402047480,1768493471076,-500.0,0.00038904,30]
[402047481,1768493471085,-500.0,0.00038904,30]
[402047482,1768493471094,-500.0,0.00038904,30]
[402047483,1768493471103,-562.64,0.00038904,30]
[402047484,1768493471115,-500.0,0.00038904,30]
[402047485,1768493471124,-500.0,0.00038904,30]
[402047486,1768493471134,-757.13,0.00038904,30]
[402047487,1768493471147,-500.0,0.00038904,30]
[402047488,1768493471157,-520.07,0.00038904,30]
[402047489,1768493471166,-343.67891647,0.00038904,30]
[402047490,1768493471175,-1148.22,0.00038904,30]
[402047491,1768493471184,-634.49,0.00038904,30]
[402047492,1768493471193,-591.22,0.00038904,30]
[402047493,1768493471203,-500.0,0.00038904,30]
[402047494,1768493471212,-500.0,0.00038904,30]
[402047495,1768493471221,-150.82970267,0.00038904,14]
[402047496,1768493471230,-500.0,0.00038904,30]
[402047497,1768493471239,-565.16896079,0.00038904,30]
[402047498,1768493471248,-500.0,0.00038904,30]
[402047499,1768493471258,-951.93,0.00038904,30]
[402047500,1768493471267,-1269.76,0.00038904,30]
[402047501,1768493471276,-825.82,0.00038904,30]
[402047502,1768493471286,-1158.65,0.00038904,30]
[402047503,1768493471295,-527.99022629,0.00038904,30]
[402047504,1768493471305,-843.5,0.00038904,30]
[402047505,1768493471314,-500.0,0.00038904,30]
[402047506,1768493471323,-812.53,0.00038904,30]
[402047507,1768493471333,-500.0,0.00038904,30]
[402047508,1768493471342,-500.0,0.00038904,30]
[402047509,1768493471351,-644.24,0.00038904,2]
[402047510,1768493471360,-500.0,0.00038904,30]
[402047511,1768493471370,-500.0,0.00038904,30]
[402047512,1768493471379,-500.0,0.00038904,30]
[402047513,1768493471388,-517.42,0.00038904,30]
[402047514,1768493471397,-848.17,0.00038904,30]
[402047515,1768493471406,-983.09,0.00038904,30]
[402047516,1768493471416,-500.0,0.00038904,30]
[402047517,1768493471425,-151.0,0.00038904,120]
[402047518,1768493471434,-500.0,0.00038904,30]
[402047519,1768493471444,-500.0,0.00038904,30]
[402047520,1768493471453,-598.95,0.00038904,30]
[402047521,1768493471462,-152.300468,0.00038904,120]
[402047522,1768493471471,-500.0,0.00038904,30]
[402047523,1768493471482,-500.0,0.00038904,30]
[402047524,1768493471492,-827.29,0.00038904,30]
[402047525,1768493471500,-1642.86,0.00038904,30]
[402047526,1768493471510,-458.03713912,0.00038904,30]
[402047527,1768493471520,-500.0,0.00038904,30]
[402047528,1768493471530,-541.55,0.00038904,30]
[402047529,1768493471539,-500.0,0.00038904,30]
[402047530,1768493471548,-500.0,0.00038904,30]
[402047531,1768493471560,-151.0,0.00038904,120]
[402047532,1768493471570,-500.0,0.00038904,30]
[402047533,1768493471581,-1000.0,0.00038904,30]
[402047534,1768493471591,-500.0,0.00038904,30]
[402047535,1768493471602,-151.0,0.00038904,120]
[402047536,1768493471613,-500.0,0.00038904,30]
[402047537,1768493471623,-500.0,0.00038904,30]
[402047538,1768493471634,-500.0,0.00038904,30]
[402047539,1768493471644,-661.76,0.00038904,30]
[402047540,1768493471654,-500.0,0.00038904,30]
[402047541,1768493471664,-509.5,0.00038904,30]
[402047542,1768493471674,-500.0,0.00038904,30]
[402047543,1768493471684,-500.0,0.00038904,30]
[402047544,1768493471695,-609.13,0.00038904,30]
[402047545,1768493471705,-794.37,0.00038904,30]
[402047546,1768493471715,-2033.95,0.00038904,30]
[402047547,1768493471725,-876.54,0.00038904,30]
[402047548,1768493471735,-500.0,0.00038904,30]
[402047549,1768493471745,-500.0,0.00038904,30]
[402047550,1768493471755,-754.36,0.00038904,30]
[402047551,1768493471765,-594.86,0.00038904,30]
[402047552,1768493471779,-829.16,0.00038904,30]
[402047553,1768493471789,-601.87,0.00038904,30]
[402047554,1768493471800,-500.0,0.00038904,30]
[402047555,1768493471810,-583.58,0.00038904,30]
[402047556,1768493471820,-500.0,0.00038904,30]
[402047557,1768493471830,-500.0,0.00038904,30]
[402047558,1768493471841,-500.0,0.00038904,30]
[402047559,1768493471850,-591.59,0.00038904,30]
[402047560,1768493471860,-503.41,0.00038904,30]
[402047561,1768493471871,-598.46,0.00038904,30]
[402047562,1768493471882,-500.0,0.00038904,30]
[402047563,1768493471893,-151.268681,0.00038904,30]
[402047564,1768493471903,-179.128212,0.00038904,30]
[402047565,1768493471912,-500.0,0.00038904,30]
[402047566,1768493471923,-554.28,0.00038904,30]
[402047567,1768493471934,-500.0,0.00038904,14]
[402047568,1768493471945,-550.44,0.00038904,30]
[402047569,1768493471954,-500.0,0.00038904,30]
[402047570,1768493471964,-500.0,0.00038904,30]
[402047571,1768493471975,-980.05,0.00038904,30]
[402047572,1768493471996,-798.32,0.00038904,30]
[402047573,1768493472016,-500.0,0.00038904,30]
[402047574,1768493472032,-1004.92,0.00038904,30]
[402047575,1768493472042,-500.0,0.00038904,30]
[402047576,1768493472056,-219.03296915,0.00038904,30]
[402047577,1768493472088,-829.66703085,0.00038904,30]
[402047578,1768493472098,-151.0,0.00038904,120]
[402047579,1768493472108,-392.95229592,0.00038904,30]
[402047580,1768493472122,-606.76770408,0.00038904,30]
[402047581,1768493472133,-461.70729592,0.00038904,30]
[402047582,1768493472146,-502.79270408,0.00038904,30]
[402047583,1768493472156,-338.99714592,0.00038904,30]
[402047584,1768493472168,-161.00285408,0.00038904,30]
[402047585,1768493472178,-500.0,0.00038904,30]
[402047586,1768493472188,-925.16,0.00038904,30]
[402047587,1768493472198,-513.05085092,0.00038904,30]
[402047588,1768493759192,994.44,0.00030137,120]
[402047589,1768494003173,100000.0,0.00030137,120]
[402047601,1768494229852,999.0,0.0003,120]
[402047602,1768494303146,8302.5437624,0.00030137,120]
[402047608,1768494631683,-551.04807066,0.00015,2]
[402047610,1768494631695,-490.26998,0.00015739,2]
[402047613,1768494631706,-177.54602634,0.00015819,2]
[402047614,1768494631718,-177.54602634,0.000159,2]
[402047615,1768494631729,-533.0,0.00015999,2]
[402047616,1768494631740,-300.0,0.00015999,2]
[402047617,1768494631751,-1200.0,0.00015999,2]
[402047618,1768494631762,-300.0,0.00015999,2]
[402047619,1768494631773,-1850.53937038,0.00016,2]
[402047620,1768494631787,-698.53479334,0.00016,2]
[402047621,1768494631800,-815.30584082,0.00016,2]
[402047622,1768494631841,-22377.38480626,0.00016,2]
[402047623,1768494631852,-16958.85717178,0.00016,4]
[402047624,1768494631864,-171.2521626,0.000161,2]
[402047625,1768494631876,-144.76000275,0.00016199,2]
[402047626,1768494631890,-405.23999725,0.00016199,2]
[402047627,1768494631902,-5000.00086406,0.000162,5]
[402047628,1768494631913,-250.0,0.000165,2]
[402047629,1768494631924,-500.9284716,0.00016973,2]
[402047630,1768494631935,-500.0,0.00016973,2]
[402047631,1768494631946,-500.0,0.00016973,2]
[402047632,1768494631957,-500.0,0.00016973,2]
[402047633,1768494631968,-500.0,0.00016973,2]
[402047634,1768494631979,-500.0,0.00016973,2]
[402047635,1768494631990,-500.0,0.00016973,2]
[402047636,1768494632002,-500.0,0.00016973,2]
[402047637,1768494632013,-500.52270158,0.00016973,2]
[402047638,1768494632025,-500.0,0.00016973,2]
[402047639,1768494632037,-503.19318752,0.00016973,2]
[402047640,1768494632047,-500.0,0.00016973,2]
[402047642,1768494632059,-158.8798646,0.00016973,2]
[402047645,1768494632069,-502.52327925,0.00016973,2]
[402047647,1768494632081,-500.0,0.00016973,2]
[402047649,1768494632091,-500.0,0.00016973,2]
[402047651,1768494632102,-999.0,0.00017488,3]
[402047653,1768494632114,-420.0,0.00017492,2]
[402047655,1768494632125,-500.78286507,0.00017521,2]
[402047657,1768494632136,-1000.0,0.00017521,2]
[402047660,1768494632147,-1000.0,0.00017521,2]
[402047662,1768494632157,-1081.21291335,0.00017521,2]
[402047664,1768494632168,-1000.0,0.00017521,2]
[402047666,1768494632180,-500.0,0.00017521,2]
[402047668,1768494632191,-1000.0,0.00017521,2]
[402047670,1768494632202,-1848.38690317,0.00017555,2]
[402047673,1768494632214,-1680.0,0.0001758,2]
[402047675,1768494632225,-1105.436,0.00017673,2]
[402047677,1768494632236,-289.39001262,0.00017772,2]
[402047679,1768494632247,-500.0,0.00017772,2]
[402047681,1768494632258,-500.0,0.00017772,2]
[402047683,1768494632269,-214.30030878,0.00017772,2]
[402047685,1768494632281,-1000.0,0.00017773,2]
[402047688,1768494632292,-26626.4333284,0.000178,2]
[402047690,1768494632303,-500.0,0.00017871,2]
[402047692,1768494632315,-500.0,0.00017872,2]
[402047694,1768494632325,-367.88677991,0.00017899,2]
[402047696,1768494632337,-248.84307382,0.000179,2]
[402047698,1768494632347,-457.97485182,0.000179,2]
[402047701,1768494632359,-2767.03657249,0.000179,2]
[402047703,1768494632370,-5604.57846441,0.000179,2]
[402047705,1768494632383,-445.42859177,0.000179,2]
[402047707,1768494632395,-222.24058826,0.000179,2]
[402047709,1768494632405,-332.33081997,0.000179,2]
[402047715,1768494632448,-255.00000005,0.000179,2]
[402047717,1768494632462,-19348.07005087,0.000179,2]
[402047718,1768494632473,-1882.10402196,0.000179,2]
[402047719,1768494637789,-151.0,0.00016878,2]
[402047720,1768494637798,-312.01244513,0.000179,2]
[402047721,1768494637820,-1193.96296592,0.000179,2]
[402047722,1768494637831,-5973.12589039,0.000179,2]
[402047723,1768494637847,-666.24,0.000179,2]
[402047724,1768494637863,-103942.24586758,0.000179,2]
[402047725,1768494637874,-13562.30264887,0.000179,2]
[402047726,1768494637884,-11300.48831134,0.000179,2]
[402047727,1768494637895,-7554.10434001,0.000179,2]
[402047728,1768494637904,-4239.2592,0.000179,2]
[402047729,1768494637914,-203.0,0.00017917,2]
[402047730,1768494637927,-192.31834615,0.00017928,2]
[402047731,1768494637937,-639.552,0.00017973,2]
[402047732,1768494637948,-500.0,0.00017973,2]
[402047733,1768494637958,-500.51697869,0.00017973,2]
[402047734,1768494637968,-169.26751175,0.00017973,2]
[402047735,1768494637978,-500.0,0.00017973,2]
[402047736,1768494637988,-150.0,0.00017973,2]
[402047737,1768494637997,-150.0,0.00017973,2]
[402047738,1768494638007,-578.36771802,0.0001799,2]
[402047739,1768494638017,-578.36771802,0.0001799,2]
[402047740,1768494638028,-578.36771802,0.0001799,2]
[402047741,1768494638038,-151.0,0.00017997,2]
[402047742,1768494638049,-123345.36933077,0.00017998,2]
[402047743,1768494638058,-155.0,0.00017999,2]
[402047744,1768494638068,-500.0,0.00017999,2]
[402047745,1768494638078,-212.8341757,0.00017999,2]
[402047746,1768494638087,-311.82052599,0.00017999,2]
[402047747,1768494638097,-500.0,0.00017999,2]
[402047748,1768494638107,-466.003298,0.00017999,2]
[402047749,1768494638119,-500.0,0.00017999,2]
[402047750,1768494638130,-274.40231974,0.00017999,2]
[402047751,1768494638141,-500.0,0.00017999,2]
[402047752,1768494638151,-500.0,0.00017999,2]
[402047753,1768494638160,-500.0,0.00017999,2]
[402047754,1768494638170,-500.0,0.00017999,2]
[402047755,1768494638179,-183.3631216,0.00017999,2]
[402047756,1768494638189,-500.0,0.00017999,2]
[402047757,1768494638198,-500.0,0.00017999,2]
[402047758,1768494638207,-500.0,0.00017999,2]
[402047759,1768494638216,-500.0,0.00017999,2]
[402047760,1768494638226,-500.0,0.00017999,2]
[402047761,1768494638235,-500.0,0.00017999,2]
[402047762,1768494638244,-500.0,0.00017999,2]
[402047763,1768494638254,-246.47574241,0.00017999,2]
[402047764,1768494638263,-500.0,0.00017999,2]
[402047765,1768494638272,-500.0,0.00017999,2]
[402047766,1768494638282,-500.0,0.00017999,2]
[402047767,1768494638291,-500.0,0.00017999,2]
[402047768,1768494638301,-500.0,0.00017999,2]
[402047769,1768494638311,-500.0,0.00017999,2]
[402047770,1768494638320,-515.51052131,0.00017999,2]
[402047771,1768494638330,-500.0,0.00017999,2]
[402047772,1768494638340,-500.0,0.00017999,2]
[402047773,1768494638349,-500.0,0.00017999,2]
[402047774,1768494638358,-500.0,0.00017999,2]
[402047775,1768494638372,-500.0,0.00017999,2]
[402047776,1768494638382,-500.0,0.00017999,2]
[402047777,1768494638391,-500.0,0.00017999,2]
[402047778,1768494638401,-500.0,0.00017999,2]
[402047779,1768494638411,-500.0,0.00017999,2]
[402047780,1768494638424,-500.0,0.00017999,2]
[402047781,1768494638434,-500.0,0.00017999,2]
[402047782,1768494638443,-500.0,0.00017999,2]
[402047783,1768494638453,-500.0,0.00017999,2]
[402047784,1768494638463,-500.0,0.00017999,2]
[402047785,1768494638473,-500.0,0.00017999,2]
[402047786,1768494638483,-500.0,0.00017999,2]
[402047787,1768494638494,-500.0,0.00017999,2]
[402047788,1768494638505,-500.0,0.00017999,2]
[402047789,1768494638515,-500.0,0.00017999,2]
[402047790,1768494638525,-500.0,0.00017999,2]
[402047791,1768494638536,-500.0,0.00017999,2]
[402047793,1768494638547,-500.0,0.00017999,2]
[402047795,1768494638558,-500.0,0.00017999,2]
[402047796,1768494638568,-500.0,0.00017999,2]
[402047797,1768494638578,-500.0,0.00017999,2]
[402047798,1768494638588,-500.0,0.00017999,2]
[402047799,1768494638598,-699250.06267531,0.00018,2]
[402047800,1768494638612,-984789.72327745,0.00018,2]
[402047803,1768494638631,-62380.68402102,0.00018,2]
[402047805,1768494638643,-6075.55271393,0.00018,2]
[402047806,1768494638655,-675.01067611,0.00018,2]
[402047807,1768494638668,-474.71000045,0.00018,2]
[402047808,1768494638704,-7942.50148664,0.00018,2]
[402047809,1768494638716,-1377.07327054,0.00018,2]
[402047810,1768494638728,-498.98998669,0.00018,2]
[402047811,1768494638747,-1046.26,0.00018,2]
[402047812,1768494638760,-78538.2697387,0.00018,2]
[402047813,1768494638773,-70574.26379781,0.00018,2]
[402047814,1768494638786,-10115.66751706,0.00018,2]
[402047819,1768494640064,-4430.16970785,0.00018,2]
[402047820,1768494640096,-1000.71583247,0.00018,2]
[402047821,1768494640109,-1036.69983856,0.00018,2]
[402047822,1768494640129,-3718.69311632,0.00018,2]
[402047823,1768494640263,-428.13773134,0.00018,2]
[402047825,1768494640276,-1149.076819,0.00018,2]
[402047859,1768494643005,-368.65790393,0.00018,2]
[402047870,1768494643192,-3544.57908521,0.00018,2]
[402047871,1768494643204,-500.0,0.00018,2]
[402047872,1768494643235,-91.71000025,0.00018,2]
[402047883,1768494645694,-360.5,0.00018,2]
[402047885,1768494645734,-11999.07050161,0.00018,2]
[402047886,1768494645746,-473.47180896,0.00018,2]
[402047887,1768494645757,-1444.61513517,0.00018,2]
[402047888,1768494645781,-280500.0,0.00018,2]
[402047889,1768494645800,-218002.65835033,0.00018,2]
[402047890,1768494645811,-1104.89183922,0.00018,2]
[402047891,1768494645999,-724.3589,0.00018,2]
[402047892,1768494646011,-423.6197617,0.00018,2]
[402047893,1768494646023,-325.0,0.00018,2]
[402047894,1768494646099,-10455.58516621,0.00018,2]
[402047896,1768495010703,2116.13630731,0.00030136,120]
[402047897,1768495044232,-151.0,0.00016497,2]
[402047898,1768495044256,-4.0,0.00016497,2]
[402047899,1768495116252,1045.26,0.00013004,2]
[402047901,1768495233201,152.92,0.00019178,30]
[402047902,1768495480566,154.53,8.376e-05,2]
[402047903,1768495602185,-169.82,0.00013479,2]
[402047904,1768495602208,-314.88562347,0.00014826,2]
[402047914,1768495831842,-300.0,0.00014826,2]
[402047915,1768495831852,-1200.0,0.00014826,2]
[402047916,1768495831863,-300.0,0.00014826,2]
[402047917,1768495831873,-200.93471854,0.00014827,2]
[402047918,1768495831883,-336.37452146,0.00014827,2]
[402047919,1768495831896,-70.52283759,0.00014827,2]
[402047920,1768495831906,-459.72377725,0.00014827,2]
[402047921,1768495831917,-195.0,0.00014827,2]
[402047922,1768495831927,-164.1,0.000155,2]
[402047923,1768495831937,-3390.27210516,0.00016,2]
[402047924,1768495831949,-682.0108854,0.00016,2]
[402047925,1768495831976,-5082.71700944,0.00016,2]
[402047926,1768495831986,-151.0,0.00016156,2]
[402047927,1768495831995,-151.0,0.00016156,2]
[402047928,1768495832006,-151.0,0.00016162,2]
[402047929,1768495832016,-151.0,0.00016162,2]
[402047930,1768495832025,-151.0,0.00016165,2]
[402047931,1768495832034,-151.0,0.00016165,2]
[402047932,1768495832044,-151.0,0.00016173,2]
[402047933,1768495832053,-151.0,0.00016173,2]
[402047934,1768495832062,-236.0,0.00016229,2]
[402047935,1768495832072,-420.0,0.00016229,2]
[402047936,1768495832081,-1680.0,0.00016308,2]
[402047937,1768495832091,-2331.28,0.00016752,2]
[402047938,1768495832101,-200.0,0.00016801,2]
[402047939,1768495832110,-1000.0,0.00016822,2]
[402047940,1768495832120,-828.43,0.00016878,2]
[402047941,1768495832129,-3240.0,0.0001693,2]
[402047942,1768495832139,-500.0,0.00016973,2]
[402047943,1768495832149,-505.67294761,0.00016973,2]
[402047944,1768495832158,-500.0,0.00016973,2]
[402047945,1768495832167,-500.0,0.00016973,2]
[402047946,1768495832177,-418.26204556,0.00016973,2]
[402047947,1768495832190,-81.73795444,0.00016973,2]
[402047948,1768495832199,-166.66,0.00017141,2]
[402047949,1768495832209,-294.97518956,0.00017295,2]
[402047950,1768495832220,-1557.44481044,0.00017295,2]
[402047951,1768495832229,-1000.0,0.00017521,2]
[402047952,1768495832239,-1000.0,0.00017521,2]
[402047953,1768495832248,-1894.9214,0.000177,2]
[402047954,1768495832258,-166.66,0.00017707,2]
[402047955,1768495832267,-160.17097598,0.00017709,2]
[402047956,1768495832276,-341.07563913,0.00017709,2]
[402047957,1768495832285,-828.43,0.00017722,2]
[402047958,1768495832294,-262.0,0.00017745,2]
[402047959,1768495832303,-8913.53771233,0.00017764,2]
[402047960,1768495832312,-10818.52265267,0.00017764,2]
[402047961,1768495832321,-587.0,0.00017765,2]
[402047962,1768495832330,-571.55631892,0.00017772,2]
[402047963,1768495832339,-3308.55582868,0.00017779,2]
[402047964,1768495832354,-1498.41572974,0.00017779,2]
[402047965,1768495837883,-4106.56615385,0.00017779,2]
[402047966,1768495837892,-9813.43384615,0.00017779,2]
[402047967,1768495837991,-520.48319249,0.00017779,2]
[402047968,1768495838003,-484.605614,0.00017779,2]
[402047969,1768495838012,-6307.75511279,0.00017794,2]
[402047970,1768495838024,-2605.78259948,0.00017794,2]
[402047971,1768495838033,-10818.52265264,0.00017794,2]
[402047972,1768495838042,-151.0,0.00017797,2]
[402047973,1768495838052,-151.0,0.00017797,2]
[402047974,1768495838061,-884.349,0.00017798,2]
[402047975,1768495838071,-500.0,0.00017799,2]
[402047976,1768495838080,-500.0,0.00017799,2]
[402047977,1768495838090,-500.0,0.00017799,2]
[402047978,1768495838100,-500.0,0.00017799,2]
[402047979,1768495838110,-500.0,0.00017799,2]
[402047980,1768495838119,-500.0,0.00017799,2]
[402047981,1768495838130,-346.47574241,0.00017799,2]
[402047982,1768495838139,-500.0,0.00017799,2]
[402047983,1768495838150,-500.0,0.00017799,2]
[402047984,1768495838159,-500.0,0.00017799,2]
[402047985,1768495838168,-500.0,0.00017799,2]
[402047986,1768495838178,-500.0,0.00017799,2]
[402047987,1768495838187,-500.0,0.00017799,2]
[402047988,1768495838196,-500.0,0.00017799,2]
[402047989,1768495838206,-500.0,0.00017799,2]
[402047990,1768495838215,-500.0,0.00017799,2]
[402047991,1768495838223,-500.0,0.00017799,2]
[402047992,1768495838233,-500.0,0.00017799,2]
[402047993,1768495838242,-496.39594692,0.00017799,2]
[402047994,1768495838251,-500.0,0.00017799,2]
[402047996,1768495838260,-500.0,0.00017799,2]
[402047998,1768495838269,-500.0,0.00017799,2]
[402047999,1768495838278,-500.0,0.00017799,2]
[402048001,1768495838287,-500.0,0.00017799,2]
[402048002,1768495838296,-500.0,0.00017799,2]
[402048003,1768495838306,-500.0,0.00017799,2]
[402048004,1768495838316,-500.0,0.00017799,2]
[402048005,1768495838324,-500.0,0.00017799,2]
[402048006,1768495838334,-500.0,0.00017799,2]
[402048007,1768495838343,-500.0,0.00017799,2]
[402048008,1768495838352,-500.0,0.00017799,2]
[402048009,1768495838361,-500.0,0.00017799,2]
[402048010,1768495838370,-500.0,0.00017799,2]
[402048011,1768495838380,-515.51052131,0.00017799,2]
[402048012,1768495838390,-500.0,0.00017799,2]
[402048013,1768495838401,-500.0,0.00017799,2]
[402048014,1768495838410,-500.0,0.00017799,2]
[402048015,1768495838419,-500.0,0.00017799,2]
[402048016,1768495838429,-500.0,0.00017799,2]
[402048017,1768495838438,-500.0,0.00017799,2]
[402048018,1768495838447,-500.0,0.00017799,2]
[402048019,1768495838456,-500.0,0.00017799,2]
[402048020,1768495838465,-500.0,0.00017799,2]
[402048021,1768495838475,-500.0,0.00017799,2]
[402048022,1768495838485,-183.3631216,0.00017799,2]
[402048023,1768495838494,-500.0,0.00017799,2]
[402048024,1768495838503,-448.44894787,0.00017799,2]
[402048025,1768495838512,-500.0,0.00017799,2]
[402048026,1768495838522,-500.0,0.00017799,2]
[402048027,1768495838532,-500.0,0.00017799,2]
[402048028,1768495838542,-500.0,0.00017799,2]
[402048029,1768495838551,-371.53,0.00017799,2]
[402048030,1768495838560,-953477.62153705,0.000178,2]
[402048031,1768495838572,-46522.37846295,0.000178,2]
[402048032,1768495838582,-8913.53771227,0.00017809,2]
[402048033,1768495838591,-10818.52265264,0.00017809,2]
[402048034,1768495838601,-8913.53771227,0.00017824,2]
[402048035,1768495838610,-10818.52265264,0.00017824,2]
[402048036,1768495838620,-8913.53771227,0.0001784,2]
[402048037,1768495838629,-10818.52265264,0.0001784,2]
[402048038,1768495838638,-578.36771802,0.00017854,2]
[402048039,1768495838648,-8913.53771227,0.00017855,2]
[402048040,1768495838657,-10818.52265264,0.00017855,2]
[402048041,1768495838667,-500.0,0.00017864,2]
[402048042,1768495838676,-13320.21830321,0.00017864,2]
[402048043,1768495838686,-10319.47487544,0.00017864,2]
[402048044,1768495838695,-7550.63679004,0.00017864,2]
[402048045,1768495838704,-5047.41888793,0.00017864,2]
[402048046,1768495838713,-2832.5385,0.00017864,2]
[402048047,1768495838722,-8913.53771227,0.0001787,2]
[402048048,1768495838732,-10818.52265264,0.0001787,2]
[402048049,1768495838741,-8913.53771227,0.00017885,2]
[402048050,1768495838750,-10818.52265264,0.00017885,2]
[402048051,1768495838762,-192.31834615,0.000179,2]
[402048052,1768495838771,-8913.53771227,0.000179,2]
[402048053,1768495838781,-10818.52265264,0.000179,2]
[402048054,1768495838790,-165.89538256,0.000179,2]
[402048055,1768495838800,-305.31656788,0.000179,2]
[402048056,1768495838810,-185.20049025,0.000179,2]
[402048057,1768495838821,-1844.69104834,0.000179,2]
[402048058,1768495838830,-2351.0,0.00017939,2]
[402048059,1768495838841,-639.552,0.00017973,2]
[402048060,1768495838850,-169.26751175,0.00017973,2]
[402048061,1768495838859,-500.0,0.00017973,2]
[402048062,1768495838869,-500.0,0.00017973,2]
[402048063,1768495838878,-500.51697869,0.00017973,2]
[402048064,1768495839179,-578.36771802,0.0001799,2]
[402048065,1768495839189,-578.36771802,0.0001799,2]
[402048066,1768495839199,-151.0,0.00017997,2]
[402048067,1768495839209,-150.0,0.00017999,2]
[402048068,1768495839218,-1087.31761346,0.00017999,5]
[402048069,1768495839228,-300.0,0.00017999,2]
[402048070,1768495839238,-666.0,0.00017999,2]
[402048071,1768495839248,-408.98199245,0.00017999,2]
[402048072,1768495839257,-382.32069592,0.00017999,2]
[402048073,1768495839267,-748338.153122,0.00018,2]
[402048074,1768495839344,-811.58445631,0.00018,2]
[402048075,1768495839359,-398.19381203,0.00018,2]
[402048079,1768495839936,-21568.73268217,0.00018,2]
[402048080,1768495839947,-66899.84352685,0.00018,2]
[402048081,1768495839959,-49116.80386235,0.00018,2]
[402048082,1768495839971,-3738.47688279,0.00018,2]
[402048083,1768495839982,-453.16650001,0.00018,2]
[402048084,1768495840006,-347.55543245,0.00018,2]
[402048085,1768495840018,-484.41,0.00018,2]
[402048086,1768495840029,-308.61004069,0.00018,2]
[402048087,1768495840040,-287.69899992,0.00018,2]
[402048088,1768495840051,-730.998791,0.00018,2]
[402048089,1768495840062,-6298.654342,0.00018,2]
[402048090,1768495840073,-2728590.44218827,0.00018,2]
[402048091,1768495840084,-1401399.29952838,0.00018,2]
[402048092,1768495840094,-405.0689839,0.00018,2]
[402048093,1768495840103,-1189.21211485,0.00018,2]
[402048094,1768495840113,-2299.5804433,0.00018,2]
[402048095,1768495840124,-151.0,0.00018,2]
[402048096,1768495840134,-151.0,0.00018,2]
[402048097,1768495840144,-168.35101,0.00018,2]
[402048098,1768495840155,-151.0,0.00018,2]
[402048099,1768495840165,-151.0,0.00018,2]
[402048100,1768495840174,-151.0,0.00018,2]
[402048101,1768495840183,-175.71837,0.00018,2]
[402048102,1768495840193,-151.0,0.00018,2]
[402048103,1768495840202,-151.0,0.00018,2]
[402048104,1768495840211,-1658.19,0.00018043,2]
[402048105,1768495840221,-833.70255706,0.00018068,2]
[402048106,1768495840230,-371.53,0.00018073,2]
[402048107,1768495840239,-225.19,0.00018188,2]
[402048108,1768495840249,-166.66,0.00018272,2]
[402048109,1768495840259,-371.53,0.00018347,2]
[402048110,1768495840268,-1393.3,0.0001835,2]
[402048111,1768495840278,-150.0,0.00018408,2]
[402048112,1768495840287,-2604.19,0.00018465,2]
[402048113,1768495840297,-500.0,0.00018521,2]